[Event "Chessity Nationale Pupillendag 2018 - Groep F"]
[Site "Meppel, Netherlands"]
[Date "2018.06.23"]
[Round "2.2"]
[White "Koolhoven, Giovanni"]
[Black "Jakhari, Ansh"]
[Result "0-1"]
[TimeControl "15 min + 10 sec"]
[WhiteElo "598"]
[BlackElo "1293"]

1. e4 {[%clk 00:15:17]} {[%emt 00:00:03]} e5 {[%clk 00:15:18]} {[%emt
00:00:02]} 2. Nf3 {[%clk 00:15:25]} {[%emt 00:00:01]} Nf6 {[%clk 00:15:23]}
{[%emt 00:00:06]} 3. Nxe5 {[%clk 00:15:34]} {[%emt 00:00:01]} Nxe4 {[%clk
00:15:27]} {[%emt 00:00:05]} 4. Qe2 {[%clk 00:15:43]} {[%emt 00:00:01]} Qe7
{[%clk 00:14:34]} {[%emt 00:01:04]} 5. Qxe4 {[%clk 00:15:51]} d6 {[%clk
00:14:37]} {[%emt 00:00:07]} 6. d4 {[%clk 00:15:59]} {[%emt 00:00:03]} dxe5
{[%clk 00:14:42]} {[%emt 00:00:04]} 7. dxe5 {[%emt 00:00:03]} Nc6 {[%clk
00:14:48]} {[%emt 00:00:03]} 8. Bf4 {[%clk 00:16:06]} {[%emt 00:00:13]} g6
{[%clk 00:14:31]} {[%emt 00:00:26]} 9. Bb5 {[%clk 00:16:13]} {[%emt 00:00:04]}
Qc5 {[%clk 00:14:19]} {[%emt 00:00:22]} 10. Nc3 {[%clk 00:16:05]} {[%emt
00:00:18]} a6 {[%clk 00:14:16]} {[%emt 00:00:13]} 11. Bxc6+ {[%clk 00:16:11]}
{[%emt 00:00:04]} bxc6 {[%clk 00:14:23]} {[%emt 00:00:02]} 12. O-O-O {[%clk
00:16:08]} {[%emt 00:00:13]} Bf5 {[%clk 00:14:16]} {[%emt 00:00:18]} 13. Qe2
{[%clk 00:15:50]} {[%emt 00:00:27]} Bg7 {[%emt 00:00:40]} 14. Rhe1 {[%clk
00:15:37]} {[%emt 00:00:20]} O-O {[%clk 00:13:46]} {[%emt 00:00:14]} 15. g4
{[%clk 00:14:47]} {[%emt 00:00:59]} Be6 {[%clk 00:13:23]} {[%emt 00:00:34]} 16.
h4 {[%clk 00:14:16]} {[%emt 00:00:40]} Rad8 {[%clk 00:13:00]} {[%emt 00:00:34]}
17. Rxd8 {[%clk 00:13:57]} {[%emt 00:00:30]} Rxd8 {[%clk 00:13:08]} {[%emt
00:00:01]} 18. h5 {[%clk 00:13:46]} {[%emt 00:00:21]} gxh5 {[%clk 00:13:15]}
{[%emt 00:00:03]} 19. gxh5 {[%clk 00:13:54]} {[%emt 00:00:01]} Rd4 {[%clk
00:13:03]} {[%emt 00:00:22]} 20. Be3 {[%clk 00:13:49]} {[%emt 00:00:15]} Qxe5
{[%clk 00:12:56]} {[%emt 00:00:18]} 21. Bxd4 {[%clk 00:13:49]} {[%emt
00:00:10]} Qxd4 {[%clk 00:13:03]} {[%emt 00:00:03]} 22. Rg1 {[%clk 00:13:41]}
{[%emt 00:00:18]} Qf4+ {[%clk 00:12:52]} {[%emt 00:00:20]} 23. Kb1 {[%clk
00:13:37]} {[%emt 00:00:15]} 0-1